[Event "Titled Tuesday Blitz October 25 Late 2022"]
[White "Jimenez Fernandez, Rebeca"]
[Black "Ardila, Oscar Humberto"]
[WhiteFideId "32070934"]
[BlackFideId "4404742"]
[WhiteElo "1946"]
[BlackElo "1898"]
[Result "1-0"]
[Round "09"]
[TimeControl "180+1"]
[Date "2022.10.26"]
[WhiteClock "0:00:20"]
[BlackClock "0:00:05"]

1. e4 {[%clk 0:03:00]}  e5 {[%clk 0:02:51]} 2. d4 {[%clk 0:02:58]}  exd4 {[%clk 0:02:51]} 3. Qxd4 {[%clk 0:02:58]}  Nc6 {[%clk 0:02:51]} 4. Qe3 {[%clk 0:02:56]}  Qe7 {[%clk 0:02:44]} 5. Nc3 {[%clk 0:02:56]}  Nf6 {[%clk 0:02:43]} 6. Bd2 {[%clk 0:02:55]}  Qc5 {[%clk 0:02:42]} 7. Qg3 {[%clk 0:02:31]}  d6 {[%clk 0:02:10]} 8. O-O-O {[%clk 0:02:25]}  Be6 {[%clk 0:02:09]} 9. Be3 {[%clk 0:02:08]}  Qe5 {[%clk 0:02:05]} 10. f4 {[%clk 0:02:07]}  Qa5 {[%clk 0:02:05]} 11. Kb1 {[%clk 0:01:34]}  O-O-O {[%clk 0:02:04]} 12. a3 {[%clk 0:01:27]}  d5 {[%clk 0:01:51]} 13. f5 {[%clk 0:01:23]}  d4 {[%clk 0:01:50]} 14. Bxd4 {[%clk 0:01:20]}  Nxd4 {[%clk 0:01:46]} 15. fxe6 {[%clk 0:01:20]}  fxe6 {[%clk 0:01:46]} 16. Bc4 {[%clk 0:01:17]}  Bxa3 {[%clk 0:01:37]} 17. bxa3 {[%clk 0:01:00]}  Qxa3 {[%clk 0:01:31]} 18. Nd5 {[%clk 0:00:58]}  Qc5 {[%clk 0:01:21]} 19. Rxd4 {[%clk 0:00:55]}  exd5 {[%clk 0:01:13]} 20. Nf3 {[%clk 0:00:29]}  dxc4 {[%clk 0:00:52]} 21. Qxg7 {[%clk 0:00:28]}  Nd7 {[%clk 0:00:38]} 22. Rhd1 {[%clk 0:00:25]}  Qb5+ {[%clk 0:00:30]} 23. Kc1 {[%clk 0:00:25]}  Nb6 {[%clk 0:00:14]} 24. Qg4+ {[%clk 0:00:21]}  Nd7 {[%clk 0:00:11]} 25. Ne5 {[%clk 0:00:18]}  Qxe5 {[%clk 0:00:08]} 26. Rxd7 {[%clk 0:00:18]}  Rxd7 {[%clk 0:00:07]} 27. Qxd7+ {[%clk 0:00:18]}  Kb8 {[%clk 0:00:07]} 28. Qd8+ {[%clk 0:00:19]}  Rxd8 {[%clk 0:00:05]} 29. Rxd8# {[%clk 0:00:20]} 1-0


[Site "https://www.chess.com"]

[Event "Titled Tuesday Blitz October 25 Late 2022"]
[White "Kabanova, Ekaterina"]
[Black "Estrada Nieto, Julian"]
[WhiteFideId "24112917"]
[BlackFideId "5101018"]
[WhiteElo "2141"]
[BlackElo "2252"]
[Result "1-0"]
[Round "09"]
[TimeControl "180+1"]
[Date "2022.10.26"]
[WhiteClock "0:00:21"]
[BlackClock "0:00:01"]

1. c4 {[%clk 0:01:41]}  e5 {[%clk 0:02:59]} 2. e3 {[%clk 0:01:41]}  Nf6 {[%clk 0:02:59]} 3. a3 {[%clk 0:01:41]}  a5 {[%clk 0:02:55]} 4. Qc2 {[%clk 0:01:41]}  Nc6 {[%clk 0:02:54]} 5. b3 {[%clk 0:01:40]}  g6 {[%clk 0:02:51]} 6. Bb2 {[%clk 0:01:40]}  Bg7 {[%clk 0:02:50]} 7. Nf3 {[%clk 0:01:41]}  d6 {[%clk 0:02:47]} 8. d3 {[%clk 0:01:40]}  O-O {[%clk 0:02:47]} 9. Nbd2 {[%clk 0:01:41]}  Nd7 {[%clk 0:02:28]} 10. Be2 {[%clk 0:01:42]}  Nc5 {[%clk 0:02:26]} 11. h4 {[%clk 0:01:41]}  Bg4 {[%clk 0:02:25]} 12. Bc3 {[%clk 0:01:40]}  Qe7 {[%clk 0:02:09]} 13. Rb1 {[%clk 0:01:40]}  f5 {[%clk 0:02:00]} 14. b4 {[%clk 0:01:40]}  axb4 {[%clk 0:01:56]} 15. axb4 {[%clk 0:01:40]}  Na4 {[%clk 0:01:53]} 16. Ba1 {[%clk 0:01:39]}  Nb6 {[%clk 0:01:50]} 17. b5 {[%clk 0:01:37]}  Nd8 {[%clk 0:01:43]} 18. Bc3 {[%clk 0:01:34]}  Ne6 {[%clk 0:01:36]} 19. Ra1 {[%clk 0:01:17]}  Rxa1+ {[%clk 0:01:25]} 20. Bxa1 {[%clk 0:01:18]}  Nc5 {[%clk 0:01:20]} 21. O-O {[%clk 0:01:16]}  Ra8 {[%clk 0:01:12]} 22. Bc3 {[%clk 0:01:12]}  e4 {[%clk 0:01:10]} 23. dxe4 {[%clk 0:01:11]}  fxe4 {[%clk 0:01:04]} 24. Nd4 {[%clk 0:01:08]}  Bxe2 {[%clk 0:01:00]} 25. Nxe2 {[%clk 0:01:09]}  Qxh4 {[%clk 0:00:47]} 26. Bxg7 {[%clk 0:01:08]}  Kxg7 {[%clk 0:00:47]} 27. Nc3 {[%clk 0:00:46]}  Re8 {[%clk 0:00:34]} 28. f3 {[%clk 0:00:46]}  exf3 {[%clk 0:00:29]} 29. Rxf3 {[%clk 0:00:47]}  Nxc4 {[%clk 0:00:24]} 30. Nf1 {[%clk 0:00:35]}  Qe1 {[%clk 0:00:16]} 31. Nd5 {[%clk 0:00:28]}  Ne5 {[%clk 0:00:13]} 32. Rf2 {[%clk 0:00:20]}  Ng4 {[%clk 0:00:13]} 33. Qb2+ {[%clk 0:00:19]}  Kg8 {[%clk 0:00:14]} 34. Nf6+ {[%clk 0:00:18]}  Nxf6 {[%clk 0:00:13]} 35. Qxf6 {[%clk 0:00:19]}  Nd7 {[%clk 0:00:05]} 36. Qf7+ {[%clk 0:00:18]}  Kh8 {[%clk 0:00:05]} 37. Qxe8+ {[%clk 0:00:18]}  Kg7 {[%clk 0:00:06]} 38. Qf7+ {[%clk 0:00:19]}  Kh6 {[%clk 0:00:07]} 39. Qxd7 {[%clk 0:00:19]}  Qd1 {[%clk 0:00:06]} 40. Qh3+ {[%clk 0:00:20]}  Kg7 {[%clk 0:00:05]} 41. Qd7+ {[%clk 0:00:20]}  Kh6 {[%clk 0:00:04]} 42. Qxc7 {[%clk 0:00:20]}  Qd5 {[%clk 0:00:03]} 43. b6 {[%clk 0:00:21]}  Qe5 {[%clk 0:00:03]} 44. Qxb7 {[%clk 0:00:21]}  d5 {[%clk 0:00:02]} 45. Qc6 {[%clk 0:00:21]}  Qa1 {[%clk 0:00:02]} 46. b7 {[%clk 0:00:21]}  d4 {[%clk 0:00:03]} 47. exd4 {[%clk 0:00:21]}  Qxd4 {[%clk 0:00:01]} 48. b8=Q {[%clk 0:00:21]} 1-0


[Site "https://www.chess.com"]

[Event "Titled Tuesday Blitz October 25 Late 2022"]
[White "Kamsky, Gata"]
[Black "Dardha, Daniel"]
[WhiteFideId "2000024"]
[BlackFideId "240990"]
[WhiteElo "2666"]
[BlackElo "2528"]
[Result "1-0"]
[Round "09"]
[TimeControl "180+1"]
[Date "2022.10.26"]
[WhiteClock "0:00:21"]
[BlackClock "0:00:02"]

1. e4 {[%clk 0:03:00]}  e5 {[%clk 0:02:59]} 2. Nf3 {[%clk 0:02:59]}  Nc6 {[%clk 0:02:59]} 3. Bb5 {[%clk 0:02:58]}  Nf6 {[%clk 0:02:59]} 4. O-O {[%clk 0:02:58]}  Nxe4 {[%clk 0:03:00]} 5. d4 {[%clk 0:02:58]}  Nd6 {[%clk 0:03:00]} 6. Bxc6 {[%clk 0:02:58]}  dxc6 {[%clk 0:03:01]} 7. dxe5 {[%clk 0:02:58]}  Nf5 {[%clk 0:03:02]} 8. Qxd8+ {[%clk 0:02:58]}  Kxd8 {[%clk 0:03:03]} 9. Rd1+ {[%clk 0:02:58]}  Ke8 {[%clk 0:03:02]} 10. Nc3 {[%clk 0:02:59]}  Be7 {[%clk 0:03:03]} 11. h3 {[%clk 0:02:54]}  Nh4 {[%clk 0:03:03]} 12. Nxh4 {[%clk 0:02:53]}  Bxh4 {[%clk 0:03:04]} 13. Bf4 {[%clk 0:02:44]}  h5 {[%clk 0:03:03]} 14. f3 {[%clk 0:02:36]}  g5 {[%clk 0:02:33]} 15. Be3 {[%clk 0:02:28]}  g4 {[%clk 0:02:33]} 16. Kh2 {[%clk 0:02:02]}  Bf5 {[%clk 0:02:26]} 17. Rd2 {[%clk 0:02:02]}  gxf3 {[%clk 0:02:12]} 18. gxf3 {[%clk 0:02:02]}  Rg8 {[%clk 0:02:08]} 19. Bf4 {[%clk 0:02:01]}  Rd8 {[%clk 0:02:04]} 20. Rad1 {[%clk 0:01:51]}  Rxd2+ {[%clk 0:02:04]} 21. Rxd2 {[%clk 0:01:52]}  Be1 {[%clk 0:01:36]} 22. Re2 {[%clk 0:01:46]}  Bxc3 {[%clk 0:01:36]} 23. bxc3 {[%clk 0:01:46]}  Ke7 {[%clk 0:01:36]} 24. Bg3 {[%clk 0:01:41]}  Ke6 {[%clk 0:01:33]} 25. Rd2 {[%clk 0:01:34]}  a5 {[%clk 0:01:25]} 26. a3 {[%clk 0:01:26]}  c5 {[%clk 0:01:23]} 27. f4 {[%clk 0:01:19]}  Be4 {[%clk 0:01:16]} 28. Bh4 {[%clk 0:01:19]}  a4 {[%clk 0:01:03]} 29. Bg5 {[%clk 0:01:16]}  Ra8 {[%clk 0:01:02]} 30. Kg3 {[%clk 0:01:16]}  b5 {[%clk 0:00:58]} 31. Kh4 {[%clk 0:00:52]}  b4 {[%clk 0:00:38]} 32. cxb4 {[%clk 0:00:51]}  cxb4 {[%clk 0:00:39]} 33. Rd4 {[%clk 0:00:51]}  Bxc2 {[%clk 0:00:31]} 34. Rxb4 {[%clk 0:00:51]}  Bg6 {[%clk 0:00:21]} 35. Rc4 {[%clk 0:00:50]}  Kd7 {[%clk 0:00:11]} 36. Bf6 {[%clk 0:00:44]}  Rg8 {[%clk 0:00:11]} 37. Rxa4 {[%clk 0:00:42]}  Ke6 {[%clk 0:00:11]} 38. Rc4 {[%clk 0:00:38]}  Kf5 {[%clk 0:00:11]} 39. Bg5 {[%clk 0:00:36]}  Ra8 {[%clk 0:00:10]} 40. Rxc7 {[%clk 0:00:32]}  Rxa3 {[%clk 0:00:10]} 41. Rc6 {[%clk 0:00:32]}  Ke4 {[%clk 0:00:07]} 42. Rc4+ {[%clk 0:00:28]}  Kf3 {[%clk 0:00:06]} 43. f5 {[%clk 0:00:27]}  Kg2 {[%clk 0:00:03]} 44. Rc2+ {[%clk 0:00:25]}  Kf3 {[%clk 0:00:02]} 45. fxg6 {[%clk 0:00:25]}  fxg6 {[%clk 0:00:03]} 46. Bf6 {[%clk 0:00:24]}  Kf4 {[%clk 0:00:01]} 47. Rf2+ {[%clk 0:00:24]}  Ke3 {[%clk 0:00:02]} 48. Rg2 {[%clk 0:00:23]}  Kf3 {[%clk 0:00:02]} 49. Rxg6 {[%clk 0:00:23]}  Kf4 {[%clk 0:00:02]} 50. e6 {[%clk 0:00:22]}  Kf5 {[%clk 0:00:02]} 51. e7 {[%clk 0:00:21]}  Kxg6 {[%clk 0:00:01]} 52. e8=Q+ {[%clk 0:00:21]}  Kxf6 {[%clk 0:00:02]} 53. Qf8+ {[%clk 0:00:21]} 1-0


[Site "https://www.chess.com"]

[Event "Titled Tuesday Blitz October 25 Late 2022"]
[White "Korchmar, Vasiliy"]
[Black "Li, Ben"]
[WhiteFideId "24131750"]
[BlackFideId "2089980"]
[WhiteElo "2370"]
[BlackElo "2267"]
[Result "0-1"]
[Round "09"]
[TimeControl "180+1"]
[Date "2022.10.26"]
[WhiteClock "0:00:01"]
[BlackClock "0:00:18"]

1. e4 {[%clk 0:03:00]}  e5 {[%clk 0:02:59]} 2. Nf3 {[%clk 0:03:00]}  Nf6 {[%clk 0:02:59]} 3. Nc3 {[%clk 0:03:00]}  Nc6 {[%clk 0:02:59]} 4. h3 {[%clk 0:03:00]}  d5 {[%clk 0:02:52]} 5. exd5 {[%clk 0:03:00]}  Nxd5 {[%clk 0:02:53]} 6. Bb5 {[%clk 0:03:00]}  Nxc3 {[%clk 0:02:53]} 7. bxc3 {[%clk 0:03:01]}  Bd6 {[%clk 0:02:53]} 8. d4 {[%clk 0:03:01]}  exd4 {[%clk 0:02:53]} 9. O-O {[%clk 0:03:02]}  O-O {[%clk 0:02:53]} 10. cxd4 {[%clk 0:03:02]}  Qf6 {[%clk 0:02:50]} 11. c4 {[%clk 0:03:00]}  h6 {[%clk 0:02:40]} 12. Be3 {[%clk 0:02:49]}  Rd8 {[%clk 0:02:25]} 13. Qe2 {[%clk 0:02:38]}  Bf5 {[%clk 0:02:18]} 14. c5 {[%clk 0:02:30]}  Bf8 {[%clk 0:02:17]} 15. Rad1 {[%clk 0:02:23]}  Nb4 {[%clk 0:02:13]} 16. Bc4 {[%clk 0:02:11]}  Nd5 {[%clk 0:02:07]} 17. Bxd5 {[%clk 0:02:04]}  Rxd5 {[%clk 0:02:07]} 18. Bf4 {[%clk 0:02:04]}  c6 {[%clk 0:01:43]} 19. Be5 {[%clk 0:01:56]}  Qd8 {[%clk 0:01:39]} 20. Rfe1 {[%clk 0:01:52]}  Qd7 {[%clk 0:01:37]} 21. Bg3 {[%clk 0:01:49]}  Rd8 {[%clk 0:01:34]} 22. Ne5 {[%clk 0:01:48]}  Qc8 {[%clk 0:01:33]} 23. Qe3 {[%clk 0:01:36]}  Bxc5 {[%clk 0:01:22]} 24. Bh4 {[%clk 0:01:11]}  Rxd4 {[%clk 0:01:05]} 25. Rxd4 {[%clk 0:00:59]}  Rxd4 {[%clk 0:00:54]} 26. Qc3 {[%clk 0:00:42]}  Rd5 {[%clk 0:00:34]} 27. Nc4 {[%clk 0:00:26]}  Be6 {[%clk 0:00:31]} 28. Qg3 {[%clk 0:00:21]}  Qf8 {[%clk 0:00:26]} 29. Bf6 {[%clk 0:00:20]}  Bd4 {[%clk 0:00:25]} 30. Bxd4 {[%clk 0:00:13]}  Rxd4 {[%clk 0:00:26]} 31. Ne5 {[%clk 0:00:14]}  Qd6 {[%clk 0:00:25]} 32. f4 {[%clk 0:00:05]}  Bxa2 {[%clk 0:00:22]} 33. Kh2 {[%clk 0:00:03]}  Be6 {[%clk 0:00:21]} 34. Nf3 {[%clk 0:00:02]}  Rxf4 {[%clk 0:00:19]} 35. Re5 {[%clk 0:00:02]}  Rf6 {[%clk 0:00:18]} 36. Qe1 {[%clk 0:00:01]}  c5 {[%clk 0:00:17]} 37. Kh1 {[%clk 0:00:01]}  Rf5 {[%clk 0:00:16]} 38. Rxf5 {[%clk 0:00:01]}  Bxf5 {[%clk 0:00:17]} 39. Qe8+ {[%clk 0:00:01]}  Qf8 {[%clk 0:00:18]} 0-1


[Site "https://www.chess.com"]

[Event "Titled Tuesday Blitz October 25 Late 2022"]
[White "Koutlas, Nikolaos"]
[Black "Velikanov, Alexander"]
[WhiteFideId "25827138"]
[BlackFideId "2039290"]
[WhiteElo "2167"]
[BlackElo "2259"]
[Result "1-0"]
[Round "09"]
[TimeControl "180+1"]
[Date "2022.10.26"]
[WhiteClock "0:01:16"]
[BlackClock "0:00:02"]

1. e3 {[%clk 0:03:00]}  Nf6 {[%clk 0:02:59]} 2. Nf3 {[%clk 0:03:00]}  g6 {[%clk 0:03:00]} 3. b3 {[%clk 0:02:59]}  Bg7 {[%clk 0:03:01]} 4. Bb2 {[%clk 0:03:00]}  O-O {[%clk 0:03:02]} 5. c4 {[%clk 0:02:58]}  d6 {[%clk 0:03:03]} 6. Nc3 {[%clk 0:02:58]}  e5 {[%clk 0:03:03]} 7. d3 {[%clk 0:02:56]}  d5 {[%clk 0:03:03]} 8. Nxe5 {[%clk 0:02:50]}  Re8 {[%clk 0:02:58]} 9. d4 {[%clk 0:02:45]}  c5 {[%clk 0:02:57]} 10. Be2 {[%clk 0:02:40]}  cxd4 {[%clk 0:02:56]} 11. exd4 {[%clk 0:02:40]}  Nc6 {[%clk 0:02:53]} 12. O-O {[%clk 0:02:29]}  Be6 {[%clk 0:01:34]} 13. cxd5 {[%clk 0:02:11]}  Nxd5 {[%clk 0:01:32]} 14. Bb5 {[%clk 0:02:11]}  Rc8 {[%clk 0:00:29]} 15. Rc1 {[%clk 0:02:04]}  Nf4 {[%clk 0:00:29]} 16. Bxc6 {[%clk 0:01:57]}  bxc6 {[%clk 0:00:30]} 17. Qf3 {[%clk 0:01:35]}  Qg5 {[%clk 0:00:15]} 18. Ne4 {[%clk 0:01:30]}  Qh6 {[%clk 0:00:03]} 19. Nxc6 {[%clk 0:01:20]}  Bd5 {[%clk 0:00:02]} 20. Ne7+ {[%clk 0:01:20]}  Rxe7 {[%clk 0:00:02]} 21. Rxc8+ {[%clk 0:01:19]}  Bf8 {[%clk 0:00:03]} 22. Nf6+ {[%clk 0:01:18]}  Kg7 {[%clk 0:00:03]} 23. Nxd5 {[%clk 0:01:18]}  Nxd5 {[%clk 0:00:03]} 24. Qxd5 {[%clk 0:01:17]}  Qh5 {[%clk 0:00:02]} 25. Qxh5 {[%clk 0:01:16]} 1-0


[Site "https://www.chess.com"]

[Event "Titled Tuesday Blitz October 25 Late 2022"]
[White "Lindholt, Malik"]
[Black "Bernat, David"]
[WhiteFideId "1404490"]
[BlackFideId "2099225"]
[WhiteElo "2014"]
[BlackElo "2330"]
[Result "1/2-1/2"]
[Round "09"]
[TimeControl "180+1"]
[Date "2022.10.26"]
[WhiteClock "0:00:25"]
[BlackClock "0:00:06"]

1. e4 {[%clk 0:03:00]}  c5 {[%clk 0:03:00]} 2. Nf3 {[%clk 0:03:00]}  g6 {[%clk 0:02:59]} 3. d4 {[%clk 0:03:00]}  cxd4 {[%clk 0:02:59]} 4. Nxd4 {[%clk 0:03:01]}  Nc6 {[%clk 0:02:58]} 5. Nc3 {[%clk 0:02:59]}  Bg7 {[%clk 0:02:58]} 6. Be3 {[%clk 0:02:59]}  Nf6 {[%clk 0:02:57]} 7. Bc4 {[%clk 0:02:59]}  O-O {[%clk 0:02:55]} 8. Bb3 {[%clk 0:02:58]}  a5 {[%clk 0:02:56]} 9. O-O {[%clk 0:02:56]}  d6 {[%clk 0:02:53]} 10. f3 {[%clk 0:02:47]}  Bd7 {[%clk 0:02:50]} 11. Qd2 {[%clk 0:02:46]}  Nxd4 {[%clk 0:02:48]} 12. Bxd4 {[%clk 0:02:46]}  Bc6 {[%clk 0:02:49]} 13. Nd5 {[%clk 0:02:41]}  Nxd5 {[%clk 0:02:39]} 14. Bxd5 {[%clk 0:02:39]}  e6 {[%clk 0:02:27]} 15. Bxc6 {[%clk 0:02:19]}  bxc6 {[%clk 0:02:24]} 16. Bxg7 {[%clk 0:02:20]}  Kxg7 {[%clk 0:02:25]} 17. Qd4+ {[%clk 0:02:19]}  Qf6 {[%clk 0:01:54]} 18. Rad1 {[%clk 0:01:56]}  Qxd4+ {[%clk 0:01:48]} 19. Rxd4 {[%clk 0:01:55]}  d5 {[%clk 0:01:48]} 20. exd5 {[%clk 0:01:48]}  cxd5 {[%clk 0:01:45]} 21. c4 {[%clk 0:01:48]}  dxc4 {[%clk 0:01:25]} 22. Rxc4 {[%clk 0:01:48]}  Rfb8 {[%clk 0:01:24]} 23. b3 {[%clk 0:01:47]}  Rb4 {[%clk 0:01:08]} 24. Rfc1 {[%clk 0:01:42]}  Rab8 {[%clk 0:01:05]} 25. Kf2 {[%clk 0:01:36]}  Kf6 {[%clk 0:00:59]} 26. Ke3 {[%clk 0:01:36]}  h5 {[%clk 0:00:58]} 27. Rxb4 {[%clk 0:01:07]}  Rxb4 {[%clk 0:00:46]} 28. Rc4 {[%clk 0:00:59]}  Rxc4 {[%clk 0:00:40]} 29. bxc4 {[%clk 0:00:59]}  Ke5 {[%clk 0:00:40]} 30. f4+ {[%clk 0:00:59]}  Kd6 {[%clk 0:00:38]} 31. Kd4 {[%clk 0:00:59]}  f6 {[%clk 0:00:38]} 32. h4 {[%clk 0:00:38]}  a4 {[%clk 0:00:24]} 33. c5+ {[%clk 0:00:35]}  Kc6 {[%clk 0:00:24]} 34. Kc4 {[%clk 0:00:36]}  e5 {[%clk 0:00:24]} 35. fxe5 {[%clk 0:00:36]}  fxe5 {[%clk 0:00:25]} 36. Kb4 {[%clk 0:00:34]}  e4 {[%clk 0:00:22]} 37. Kc4 {[%clk 0:00:33]}  e3 {[%clk 0:00:17]} 38. Kd3 {[%clk 0:00:33]}  Kxc5 {[%clk 0:00:18]} 39. Kxe3 {[%clk 0:00:33]}  Kb4 {[%clk 0:00:11]} 40. Kd3 {[%clk 0:00:30]}  Ka3 {[%clk 0:00:11]} 41. Kc3 {[%clk 0:00:30]}  Kxa2 {[%clk 0:00:12]} 42. Kc2 {[%clk 0:00:30]}  a3 {[%clk 0:00:09]} 43. g3 {[%clk 0:00:25]}  Ka1 {[%clk 0:00:07]} 44. Kc1 {[%clk 0:00:25]}  Ka2 {[%clk 0:00:05]} 45. Kc2 {[%clk 0:00:25]}  Ka1 {[%clk 0:00:05]} 46. Kc1 {[%clk 0:00:25]}  Ka2 {[%clk 0:00:06]} 47. Kc2 {[%clk 0:00:25]} 1/2-1/2


[Site "https://www.chess.com"]

[Event "Titled Tuesday Blitz October 25 Late 2022"]
[White "Liu, Kelsey"]
[Black "Barash, Anton"]
[WhiteFideId "30944481"]
[BlackFideId "30935229"]
[WhiteElo "2325"]
[BlackElo "2276"]
[Result "0-1"]
[Round "09"]
[TimeControl "180+1"]
[Date "2022.10.26"]
[WhiteClock "0:02:21"]
[BlackClock "0:01:37"]

1. e4 {[%clk 0:02:57]}  e6 {[%clk 0:03:00]} 2. d4 {[%clk 0:02:53]}  d5 {[%clk 0:03:00]} 3. Nc3 {[%clk 0:02:53]}  Bb4 {[%clk 0:02:59]} 4. e5 {[%clk 0:02:53]}  c5 {[%clk 0:03:00]} 5. Bd2 {[%clk 0:02:53]}  Ne7 {[%clk 0:02:59]} 6. Nb5 {[%clk 0:02:50]}  Bxd2+ {[%clk 0:02:59]} 7. Qxd2 {[%clk 0:02:51]}  O-O {[%clk 0:02:59]} 8. f4 {[%clk 0:02:51]}  Bd7 {[%clk 0:02:57]} 9. Nd6 {[%clk 0:02:50]}  Nbc6 {[%clk 0:02:46]} 10. dxc5 {[%clk 0:02:50]}  b6 {[%clk 0:02:43]} 11. cxb6 {[%clk 0:02:49]}  Qxb6 {[%clk 0:02:43]} 12. c3 {[%clk 0:02:48]}  Rab8 {[%clk 0:02:19]} 13. O-O-O {[%clk 0:02:40]}  a5 {[%clk 0:01:56]} 14. Nf3 {[%clk 0:02:40]}  a4 {[%clk 0:01:54]} 15. Bd3 {[%clk 0:02:37]}  Na5 {[%clk 0:01:42]} 16. Nd4 {[%clk 0:02:30]}  Nec6 {[%clk 0:01:40]} 17. Bc2 {[%clk 0:02:21]}  Qxb2# {[%clk 0:01:37]} 0-1


[Site "https://www.chess.com"]

[Event "Titled Tuesday Blitz October 25 Late 2022"]
[White "Lorenzo De La Riva, Lazaro"]
[Black "Banzea, Alexandru-Bogdan"]
[WhiteFideId "2268809"]
[BlackFideId "1232622"]
[WhiteElo "2325"]
[BlackElo "2294"]
[Result "0-1"]
[Round "09"]
[TimeControl "180+1"]
[Date "2022.10.26"]
[WhiteClock "0:00:51"]
[BlackClock "0:00:20"]

1. d4 {[%clk 0:03:00]}  Nf6 {[%clk 0:02:59]} 2. c4 {[%clk 0:02:58]}  g6 {[%clk 0:02:59]} 3. Nc3 {[%clk 0:02:58]}  Bg7 {[%clk 0:03:00]} 4. e4 {[%clk 0:02:57]}  d6 {[%clk 0:03:01]} 5. Nf3 {[%clk 0:02:56]}  O-O {[%clk 0:03:01]} 6. Be2 {[%clk 0:02:57]}  e5 {[%clk 0:03:02]} 7. O-O {[%clk 0:02:56]}  Bg4 {[%clk 0:03:03]} 8. Be3 {[%clk 0:02:53]}  Bxf3 {[%clk 0:03:02]} 9. Bxf3 {[%clk 0:02:52]}  exd4 {[%clk 0:03:03]} 10. Bxd4 {[%clk 0:02:52]}  Nc6 {[%clk 0:02:59]} 11. Be3 {[%clk 0:02:50]}  Re8 {[%clk 0:02:52]} 12. Re1 {[%clk 0:02:48]}  Nd7 {[%clk 0:02:52]} 13. Qc2 {[%clk 0:02:45]}  Bxc3 {[%clk 0:02:52]} 14. Qxc3 {[%clk 0:02:40]}  Qf6 {[%clk 0:02:53]} 15. Qc2 {[%clk 0:02:37]}  Nd4 {[%clk 0:02:49]} 16. Bxd4 {[%clk 0:02:35]}  Qxd4 {[%clk 0:02:50]} 17. Rad1 {[%clk 0:02:33]}  Qf6 {[%clk 0:02:44]} 18. Be2 {[%clk 0:02:32]}  Nc5 {[%clk 0:02:38]} 19. Bf1 {[%clk 0:02:26]}  Re7 {[%clk 0:02:11]} 20. g3 {[%clk 0:02:26]}  Rae8 {[%clk 0:02:10]} 21. Bg2 {[%clk 0:02:25]}  Ne6 {[%clk 0:01:59]} 22. Qd2 {[%clk 0:02:11]}  c5 {[%clk 0:01:48]} 23. Qxd6 {[%clk 0:02:06]}  Qxb2 {[%clk 0:01:43]} 24. Qd3 {[%clk 0:01:46]}  Nd4 {[%clk 0:01:36]} 25. Rd2 {[%clk 0:01:37]}  Qb6 {[%clk 0:01:19]} 26. Rb1 {[%clk 0:01:36]}  Qc7 {[%clk 0:01:09]} 27. f4 {[%clk 0:01:36]}  f6 {[%clk 0:01:04]} 28. e5 {[%clk 0:01:29]}  fxe5 {[%clk 0:00:55]} 29. Rxb7 {[%clk 0:01:28]}  Qd6 {[%clk 0:00:50]} 30. Rxe7 {[%clk 0:01:27]}  Rxe7 {[%clk 0:00:50]} 31. Bd5+ {[%clk 0:01:26]}  Kg7 {[%clk 0:00:49]} 32. fxe5 {[%clk 0:01:18]}  Qxe5 {[%clk 0:00:43]} 33. Kg2 {[%clk 0:01:17]}  Nf5 {[%clk 0:00:30]} 34. Rf2 {[%clk 0:00:55]}  Ne3+ {[%clk 0:00:24]} 35. Kg1 {[%clk 0:00:55]}  Qa1+ {[%clk 0:00:22]} 36. Rf1 {[%clk 0:00:53]}  Nxf1 {[%clk 0:00:20]} 37. Qxf1 {[%clk 0:00:51]}  Re1 {[%clk 0:00:20]} 0-1


[Site "https://www.chess.com"]

[Event "Titled Tuesday Blitz October 25 Late 2022"]
[White "Maksimovic, Bojan"]
[Black "Sivakumar, Shaaketh"]
[WhiteFideId "14408120"]
[BlackFideId "30940176"]
[WhiteElo "2447"]
[BlackElo "2174"]
[Result "0-1"]
[Round "09"]
[TimeControl "180+1"]
[Date "2022.10.26"]
[WhiteClock "0:00:01"]
[BlackClock "0:00:42"]

1. e4 {[%clk 0:03:00]}  e6 {[%clk 0:03:00]} 2. d3 {[%clk 0:03:00]}  d5 {[%clk 0:03:00]} 3. Nd2 {[%clk 0:03:01]}  Ne7 {[%clk 0:03:00]} 4. g3 {[%clk 0:03:01]}  g6 {[%clk 0:03:01]} 5. Bg2 {[%clk 0:03:02]}  Bg7 {[%clk 0:03:01]} 6. Ngf3 {[%clk 0:03:02]}  O-O {[%clk 0:03:02]} 7. O-O {[%clk 0:03:03]}  c5 {[%clk 0:03:03]} 8. Re1 {[%clk 0:03:04]}  Nbc6 {[%clk 0:03:03]} 9. e5 {[%clk 0:03:02]}  b5 {[%clk 0:03:03]} 10. Nf1 {[%clk 0:03:01]}  a5 {[%clk 0:03:02]} 11. h4 {[%clk 0:03:00]}  h6 {[%clk 0:03:00]} 12. Bf4 {[%clk 0:03:00]}  Ba6 {[%clk 0:02:59]} 13. Qd2 {[%clk 0:03:00]}  Kh7 {[%clk 0:02:50]} 14. N1h2 {[%clk 0:03:00]}  Nf5 {[%clk 0:02:45]} 15. c3 {[%clk 0:02:39]}  b4 {[%clk 0:02:41]} 16. Bh3 {[%clk 0:02:37]}  a4 {[%clk 0:02:36]} 17. Bxf5 {[%clk 0:02:25]}  exf5 {[%clk 0:02:21]} 18. Rac1 {[%clk 0:02:25]}  Qd7 {[%clk 0:02:16]} 19. h5 {[%clk 0:02:08]}  bxc3 {[%clk 0:02:06]} 20. bxc3 {[%clk 0:02:08]}  Nd8 {[%clk 0:02:06]} 21. e6 {[%clk 0:01:49]}  Nxe6 {[%clk 0:02:04]} 22. Be5 {[%clk 0:01:50]}  g5 {[%clk 0:01:57]} 23. Bxg7 {[%clk 0:01:49]}  Kxg7 {[%clk 0:01:57]} 24. Re5 {[%clk 0:01:49]}  Bb7 {[%clk 0:01:50]} 25. Rxf5 {[%clk 0:01:43]}  d4 {[%clk 0:01:50]} 26. cxd4 {[%clk 0:01:41]}  Nxd4 {[%clk 0:01:49]} 27. Nxd4 {[%clk 0:01:40]}  cxd4 {[%clk 0:01:50]} 28. Rxg5+ {[%clk 0:01:10]}  hxg5 {[%clk 0:01:50]} 29. Qxg5+ {[%clk 0:01:11]}  Kh7 {[%clk 0:01:50]} 30. Ng4 {[%clk 0:01:09]}  Ra6 {[%clk 0:01:47]} 31. Rc5 {[%clk 0:00:39]}  f5 {[%clk 0:01:35]} 32. Ne5 {[%clk 0:00:36]}  Qg7 {[%clk 0:01:34]} 33. Qxg7+ {[%clk 0:00:34]}  Kxg7 {[%clk 0:01:33]} 34. Rc7+ {[%clk 0:00:34]}  Kh6 {[%clk 0:01:28]} 35. Rxb7 {[%clk 0:00:33]}  Kxh5 {[%clk 0:01:28]} 36. Rh7+ {[%clk 0:00:21]}  Rh6 {[%clk 0:01:28]} 37. Rd7 {[%clk 0:00:20]}  f4 {[%clk 0:01:26]} 38. g4+ {[%clk 0:00:18]}  Kh4 {[%clk 0:01:24]} 39. Rg7 {[%clk 0:00:15]}  Kh3 {[%clk 0:01:18]} 40. Nf3 {[%clk 0:00:10]}  Rhf6 {[%clk 0:00:47]} 41. g5 {[%clk 0:00:03]}  R6f7 {[%clk 0:00:44]} 42. Rg6 {[%clk 0:00:01]}  Kg4 {[%clk 0:00:41]} 43. Ne5+ {[%clk 0:00:01]}  Kf5 {[%clk 0:00:42]} 0-1


[Site "https://www.chess.com"]